[Event "Turkey IS Bank Super League 2017"]
[Site "Darica-Kocaeli"]
[Date "2017.07.27"]
[Round "2.32"]
[White "Arda, Cagil Irmak"]
[Black "Ayan, Bengu Sena"]
[Result "1/2-1/2"]
[ECO "D00"]
[WhiteElo "2080"]
[BlackElo "1862"]
[Annotator "NA"]
[PlyCount "69"]
[EventType "team-tourn"]
[EventCountry "TUR"]
[SourceTitle "playchess.com"]
[Source "ChessBase"]
[SourceQuality "1"]
[TimeControl "40/5400+30:1800+30"]

1. d4 {[%emt 0:00:30]} d5 {[%emt 0:02:00]} 2. Bf4 {[%emt 0:00:30]} Nf6 {[%emt 0:00:30]} 3. e3 {[%emt 0:00:30]} c5 {[%emt 0:00:30]} 4. c3 {[%emt 0:00:00]} Qb6 {[%emt 0:01:30]} 5. Qb3 {[%emt 0:02:00]} c4 {[%emt 0:02:30] LiveBook: 33 Games} 6. Qc2 {[%emt 0:00:30]} Nc6 {[%emt 0:08:30]} 7. Nd2 {[%emt 0:00:30]} g6 {[%emt 0:07:30]} 8. f3 $17 {[%emt 0:06:30] [%clk 1:23]} (8. e4 $14 {stays ahead.}) 8... e5 {[%emt 0:08:30]} 9. Bg5 {[%emt 0:05:30]} Bg7 {[%emt 0:03:30]} 10. e4 {[%emt 0:05:30]} exd4 {[%emt 0:08:30]} 11. exd5 {[%emt 0:03:30]} d3 {[%emt 0:05:30]} 12. Nxc4 {[%emt 0:07:30]} dxc2 {[%emt 0:02:30]} 13. Nxb6 {[%emt 0:00:30]} axb6 {[%emt 0:00:30]} 14. dxc6 {[%emt 0:00:00]} bxc6 {[%emt 0:00:30]} 15. Bd3 {[%emt 0:03:00]} Ba6 {[%emt 0:02:30]} 16. Bxa6 {[%emt 0:06:30]} Rxa6 {[%emt 0:00:30]} 17. Kd2 {[%emt 0:00:00]} Ra5 {[%emt 0:02:30]} 18. Nh3 {[%emt 0:03:00]} O-O {[%emt 0:03:30]} 19. Kxc2 {[%emt 0:00:30]} Re8 {[%emt 0:00:00]} 20. Rhd1 {[%emt 0:07:30]} Nd5 {[%emt 0:03:00]} 21. Rd3 {[%emt 0:09:30]} b5 {[%emt 0:04:30]} 22. Kb3 {[%emt 0:12:30]} b4 {[%emt 0:10:30]} 23. cxb4 {[%emt 0:10:53]} Rb8 {[%emt 0:01:30]} 24. Bd2 {[%emt 0:05:37]} Nxb4 {[%emt 0:06:19]} 25. Bxb4 {[%emt 0:00:23]} Bf8 {[%emt 0:02:36]} 26. Rd4 {[%emt 0:04:31]} c5 {[%emt 0:00:37]} 27. Rc4 {[%emt 0:00:37]} cxb4 {[%emt 0:00:23]} 28. Rd1 {[%emt 0:01:07]} Rba8 {[%emt 0:03:16]} 29. Nf4 {[%emt 0:01:50]} Rxa2 {[%emt 0:04:08]} 30. Nd3 {[%emt 0:00:05]} R2a7 {[%emt 0:01:54]} 31. Nxb4 {[%emt 0:02:04]} Rb7 {[%emt 0:00:45]} 32. Rdd4 {[%emt 0:00:43]} Rab8 {[%emt 0:01:07]} 33. h3 {[%emt 0:00:51]} Bg7 {[%emt 0:01:47]} 34. Rd2 {[%emt 0:01:10]} Bf8 {[%emt 0:00:30]} 35. Rdd4 {[%emt 0:00:00]} 1/2-1/2

[Event "Turkey IS Bank Super League 2017"]
[Site "Darica-Kocaeli"]
[Date "2017.07.27"]
[Round "2.39"]
[White "Ozates, Tuna"]
[Black "Kesgin, Halit Kaan"]
[Result "1/2-1/2"]
[ECO "C06"]
[WhiteElo "2291"]
[BlackElo "2207"]
[Annotator "NA"]
[PlyCount "117"]
[EventType "team-tourn"]
[EventCountry "TUR"]
[SourceTitle "playchess.com"]
[Source "ChessBase"]
[SourceQuality "1"]
[TimeControl "40/5400+30:1800+30"]

1. e4 {[%emt 0:00:30]} e6 {[%emt 0:01:00]} 2. d4 {[%emt 0:00:30]} d5 {[%emt 0:00:30]} 3. Nd2 {[%emt 0:00:00]} Nf6 {[%emt 0:01:30]} 4. e5 {[%emt 0:00:00]} Nfd7 {[%emt 0:00:30]} 5. Bd3 {[%emt 0:00:30]} c5 {[%emt 0:00:30]} 6. c3 {[%emt 0:00:00]} Nc6 {[%emt 0:00:00]} 7. Ne2 {[%emt 0:00:00]} cxd4 {[%emt 0:00:00]} 8. cxd4 {[%emt 0:00:30]} f6 {[%emt 0:00:30]} 9. exf6 {[%emt 0:00:30]} Nxf6 {[%emt 0:00:30]} 10. Nf3 {[%emt 0:00:30]} Bd6 {[%emt 0:00:00]} 11. O-O {[%emt 0:00:00]} Qc7 {[%emt 0:00:00]} 12. Bg5 $11 {[%emt 0:01:00]} O-O {[%emt 0:00:00]} 13. Bh4 {[%emt 0:00:30]} e5 {[%emt 0:10:00]} 14. dxe5 {[%emt 0:02:30]} Nxe5 {[%emt 0:00:30]} 15. Nxe5 {[%emt 0:00:30]} Bxe5 {[%emt 0:00:30]} 16. Bg3 {[%emt 0:01:30]} Bg4 {[%emt 0:02:30] [%clk 1:20]} 17. Rc1 {[%emt 0:10:30]} Qd6 {[%emt 0:00:30]} 18. Qb3 {[%emt 0:15:30]} Bxe2 {[%emt 0:04:30]} 19. Bxe2 {[%emt 0:00:30]} Bxg3 {[%emt 0:00:30]} 20. hxg3 {[%emt 0:00:30]} b6 {[%emt 0:00:30]} 21. Bf3 {[%emt 0:00:30]} Rac8 {[%emt 0:14:30]} 22. Rcd1 {[%emt 0:01:30]} Rfd8 {[%emt 0:01:30]} 23. Rd4 {[%emt 0:00:30]} Rc5 {[%emt 0:01:30]} 24. Rfd1 {[%emt 0:00:30]} g5 {[%emt 0:02:30]} 25. Qe3 {[%emt 0:01:30]} h6 {[%emt 0:00:30]} 26. b4 {[%emt 0:00:00]} Rcc8 {[%emt 0:10:30]} 27. Bxd5+ {[%emt 0:04:00]} Nxd5 {[%emt 0:00:30]} 28. Rxd5 {[%emt 0:00:30]} Qf6 {[%emt 0:00:00]} 29. Qd3 {[%emt 0:01:30]} Rf8 {[%emt 0:03:00]} 30. Qd2 {[%emt 0:14:30]} Rc6 {[%emt 0:05:30]} 31. Rd7 {[%emt 0:02:30]} a5 {[%emt 0:01:30]} 32. Qd5+ {[%emt 0:02:30]} Kh8 {[%emt 0:01:30]} 33. Qe4 {[%emt 0:01:30]} Qg6 {[%emt 0:00:00]} 34. Qe7 {[%emt 0:01:30]} Re8 {[%emt 0:03:00]} 35. Rd8 {[%emt 0:02:30]} Re6 {[%emt 0:02:30]} 36. Qd7 {[%emt 0:03:30]} axb4 {[%emt 0:03:30]} 37. Qd4+ {[%emt 0:00:30]} Qg7 {[%emt 0:00:00]} 38. Qxb4 {[%emt 0:01:30]} Qf6 {[%emt 0:01:00]} 39. Rxe8+ {[%emt 0:14:29]} Rxe8 {[%emt 0:00:00]} 40. Qb5 {[%emt 0:00:00]} Rf8 {[%emt 0:03:00]} 41. Qe2 {[%emt 0:05:01]} Rd8 {[%emt 0:04:30]} 42. Rb1 {[%emt 0:00:30]} Kg7 {[%emt 0:01:30]} 43. Qe3 {[%emt 0:00:30]} Rd6 {[%emt 0:00:30]} 44. Re1 {[%emt 0:01:30]} Rd7 {[%emt 0:01:30]} 45. Rb1 {[%emt 0:04:30]} Rd6 {[%emt 0:03:30]} 46. Re1 {[%emt 0:05:30]} Rd7 {[%emt 0:00:00]} 47. a3 {[%emt 0:00:30]} Qd4 {[%emt 0:02:00]} 48. Qxd4+ {[%emt 0:05:30]} Rxd4 {[%emt 0:00:30]} 49. Re6 {[%emt 0:00:00]} Rd1+ {[%emt 0:00:30]} 50. Kh2 {[%emt 0:00:00]} Ra1 {[%emt 0:00:30]} 51. Rxb6 {[%emt 0:01:30]} Rxa3 {[%emt 0:00:30]} 52. f4 {[%emt 0:02:30]} Ra4 {[%emt 0:00:30]} 53. f5 {[%emt 0:02:30]} g4 {[%emt 0:00:30]} 54. Rc6 {[%emt 0:00:30]} h5 {[%emt 0:00:30]} 55. Rg6+ {[%emt 0:02:30]} Kh7 {[%emt 0:00:30]} 56. Rg5 {[%emt 0:00:30]} Kh6 {[%emt 0:00:30]} 57. Rg6+ {[%emt 0:00:30]} Kh7 {[%emt 0:00:30]} 58. Rg5 {[%emt 0:00:30]} Kh6 {[%emt 0:00:30]} 59. Rg6+ {[%emt 0:00:00]} 1/2-1/2

[Event "Turkey IS Bank Super League 2017"]
[Site "Darica-Kocaeli"]
[Date "2017.07.27"]
[Round "2.40"]
[White "Ayazmali, Gizem"]
[Black "Ozbay, Ece"]
[Result "1-0"]
[ECO "B48"]
[WhiteElo "1849"]
[BlackElo "1970"]
[Annotator "NA"]
[PlyCount "77"]
[EventType "team-tourn"]
[EventCountry "TUR"]
[SourceTitle "playchess.com"]
[Source "ChessBase"]
[SourceQuality "1"]
[TimeControl "40/5400+30:1800+30"]

1. e4 {[%emt 0:00:30]} c5 {[%emt 0:01:00]} 2. Nf3 {[%emt 0:00:30]} e6 {[%emt 0:00:30]} 3. d4 {[%emt 0:00:30]} cxd4 {[%emt 0:00:30]} 4. Nxd4 {[%emt 0:00:00]} Nc6 {[%emt 0:00:00]} 5. Nc3 {[%emt 0:00:00]} Qc7 {[%emt 0:00:00]} 6. Be3 {[%emt 0:00:00]} a6 {[%emt 0:00:30]} 7. Qf3 {[%emt 0:01:00]} Nf6 {[%emt 0:14:30]} 8. O-O-O $11 {[%emt 0:07:30] [%clk 1:21]} Bb4 {[%emt 0:09:30]} 9. Nb1 {[%emt 0:16:30]} O-O {[%emt 0:12:30]} 10. a3 {[%emt 0:18:30]} Ne5 {[%emt 0:08:30]} 11. Qe2 {[%emt 0:01:30]} Bc5 {[%emt 0:02:30]} 12. Bg5 {[%emt 0:07:30]} Be7 {[%emt 0:10:30]} 13. f4 {[%emt 0:08:30]} Nc6 {[%emt 0:04:30]} 14. e5 {[%emt 0:04:30]} Nd5 {[%emt 0:01:30]} 15. Bxe7 {[%emt 0:02:30]} Ncxe7 {[%emt 0:00:30]} 16. Qf2 {[%emt 0:06:30]} d6 {[%emt 0:10:30]} 17. exd6 {[%emt 0:07:10]} Qxd6 {[%emt 0:00:00]} 18. g3 {[%emt 0:01:12]} b5 {[%emt 0:02:10]} 19. Bg2 {[%emt 0:04:00]} Bb7 {[%emt 0:01:03]} 20. f5 {[%emt 0:06:01]} e5 {[%emt 0:06:33]} 21. Nb3 {[%emt 0:00:48]} Rfd8 {[%emt 0:00:54]} 22. Nc3 {[%emt 0:00:55]} Qh6+ {[%emt 0:00:27]} 23. Qd2 {[%emt 0:01:21]} Qb6 {[%emt 0:10:04]} 24. Nxd5 {[%emt 0:02:03]} Nxd5 {[%emt 0:00:07]} 25. Qe2 {[%emt 0:00:21]} f6 {[%emt 0:01:18]} 26. Rd2 {[%emt 0:01:34]} Rd6 {[%emt 0:01:24]} 27. Rhd1 {[%emt 0:00:30]} Rad8 {[%emt 0:00:30]} 28. Be4 {[%emt 0:00:23]} b4 {[%emt 0:01:44]} 29. Qc4 {[%emt 0:01:43]} Qc6 {[%emt 0:00:44]} 30. Qxc6 {[%emt 0:00:09]} Bxc6 {[%emt 0:00:30]} 31. Na5 {[%emt 0:00:15]} bxa3 {[%emt 0:00:29]} 32. bxa3 {[%emt 0:00:43]} Nc3 {[%emt 0:00:39]} 33. Rxd6 {[%emt 0:00:41]} Rxd6 {[%emt 0:00:30]} 34. Rxd6 {[%emt 0:00:30]} Bxe4 {[%emt 0:00:30]} 35. Kb2 {[%emt 0:00:12]} Nb5 {[%emt 0:00:00]} 36. Rxa6 {[%emt 0:00:14]} Bxf5 {[%emt 0:00:18]} 37. a4 {[%emt 0:00:30]} Nd4 {[%emt 0:00:00]} 38. Nc4 {[%emt 0:00:53]} Nxc2 {[%emt 0:01:57]} 39. Nd6 {[%emt 0:00:13]} 1-0

[Event "Turkey IS Bank Super League 2017"]
[Site "Darica-Kocaeli"]
[Date "2017.07.27"]
[Round "2.46"]
[White "Arat, Ufuk Sezen"]
[Black "Gundogan, Cem"]
[Result "1-0"]
[ECO "A62"]
[WhiteElo "2400"]
[BlackElo "2062"]
[Annotator "ChessBase"]
[PlyCount "133"]
[EventType "team-tourn"]
[EventCountry "TUR"]
[SourceTitle "playchess.com"]
[Source "ChessBase"]
[SourceQuality "1"]
[TimeControl "40/5400+30:1800+30"]

1. d4 {[%emt 0:00:30]} e6 {[%emt 0:05:00]} 2. c4 {[%emt 0:01:30]} Nf6 {[%emt 0:02:30]} 3. g3 {[%emt 0:00:30]} c5 {[%emt 0:00:30]} 4. d5 {[%emt 0:00:30]} exd5 {[%emt 0:00:30]} 5. cxd5 {[%emt 0:00:30]} d6 {[%emt 0:00:30]} 6. Nc3 {[%emt 0:00:30]} g6 {[%emt 0:00:30]} 7. Bg2 {[%emt 0:00:30]} Bg7 {[%emt 0:00:30]} 8. Nf3 {[%emt 0:00:00]} O-O {[%emt 0:04:30]} 9. O-O {[%emt 0:00:00]} Re8 {[%emt 0:03:30]} 10. Bf4 {[%emt 0:00:00]} Ne4 {[%emt 0:02:30]} 11. Nxe4 {[%emt 0:00:00]} Rxe4 {[%emt 0:00:30]} 12. Nd2 {[%emt 0:00:30]} Rxf4 {[%emt 0:07:30] [%clk 1:05]} 13. gxf4 {[%emt 0:02:30]} Bxb2 {[%emt 0:03:30]} 14. Rb1 {[%emt 0:00:30]} Bg7 {[%emt 0:00:30]} 15. Re1 {[%emt 0:16:30]} Na6 {[%emt 0:02:30]} 16. e4 {[%emt 0:13:30]} Rb8 {[%emt 0:03:30]} 17. Bf1 {[%emt 0:13:30]} Nc7 {[%emt 0:17:30]} 18. Nc4 {[%emt 0:04:30]} Bd4 {[%emt 0:02:30]} 19. Na5 {[%emt 0:11:30]} Nxd5 {[%emt 0:14:30]} 20. Nc6 {[%emt 0:09:30]} bxc6 {[%emt 0:00:30]} 21. Rxb8 {[%emt 0:01:30]} Nb6 {[%emt 0:21:21]} 22. e5 {[%emt 0:01:30]} dxe5 {[%emt 0:03:05]} 23. fxe5 {[%emt 0:01:30]} Qc7 {[%emt 0:01:31]} 24. Rxc8+ {[%emt 0:00:30]} Qxc8 {[%emt 0:00:30]} 25. e6 {[%emt 0:00:30]} fxe6 {[%emt 0:01:18]} 26. Qg4 {[%emt 0:01:13]} e5 {[%emt 0:00:58]} 27. Qxc8+ {[%emt 0:04:18]} Nxc8 {[%emt 0:00:30]} 28. Rb1 {[%emt 0:00:30]} Nd6 {[%emt 0:00:30]} 29. Bg2 {[%emt 0:00:32]} c4 {[%emt 0:01:21]} 30. Bxc6 {[%emt 0:00:22]} c3 {[%emt 0:00:21]} 31. Kf1 {[%emt 0:02:22]} Kg7 {[%emt 0:00:34]} 32. Ke2 {[%emt 0:00:51]} Kf6 {[%emt 0:00:19]} 33. Kd3 {[%emt 0:02:42]} Kg5 {[%emt 0:00:30]} 34. f3 {[%emt 0:00:30]} Nf5 {[%emt 0:00:39]} 35. Rb7 {[%emt 0:01:52]} h5 {[%emt 0:00:32]} 36. Be4 {[%emt 0:02:27]} Kf6 {[%emt 0:00:30]} 37. Rc7 {[%emt 0:00:45]} Kg5 {[%emt 0:00:28]} 38. a4 {[%emt 0:01:49]} Nh4 {[%emt 0:00:14]} 39. Rc6 {[%emt 0:00:51]} Nf5 {[%emt 0:00:47]} 40. a5 {[%emt 0:01:03]} Nh4 {[%emt 0:01:02]} 41. a6 {[%emt 0:00:53]} Bg1 {[%emt 0:16:58]} 42. Rc7 {[%emt 0:02:30]} Bd4 {[%emt 0:01:00]} 43. Rg7 {[%emt 0:05:30]} Kf4 {[%emt 0:13:01]} 44. Rg8 {[%emt 0:03:30]} Kg5 {[%emt 0:00:20]} 45. Ke2 {[%emt 0:05:30]} Kf6 {[%emt 0:00:40]} 46. Rf8+ {[%emt 0:03:05]} Kg5 {[%emt 0:00:30]} 47. Kd3 {[%emt 0:00:03]} Nf5 {[%emt 0:00:29]} 48. Rf7 {[%emt 0:02:04]} Nd6 {[%emt 0:00:31]} 49. Rg7 {[%emt 0:01:13]} Nf5 {[%emt 0:00:29]} 50. Bxf5 {[%emt 0:00:24]} Kxf5 {[%emt 0:00:30]} 51. Rf7+ {[%emt 0:00:30]} Ke6 {[%emt 0:00:30]} 52. Rf8 {[%emt 0:00:30]} Bg1 {[%emt 0:00:30]} 53. h3 {[%emt 0:00:27]} Ke7 {[%emt 0:00:09]} 54. Rg8 {[%emt 0:00:52]} Kf7 {[%emt 0:00:51]} 55. Rc8 {[%emt 0:00:16]} Kf6 {[%emt 0:00:28]} 56. Ke4 {[%emt 0:01:52]} Kg5 {[%emt 0:00:33]} 57. Kxe5 {[%emt 0:00:29]} Kh4 {[%emt 0:00:12]} 58. Rxc3 {[%emt 0:02:14]} Kxh3 {[%emt 0:00:18]} 59. f4+ {[%emt 0:02:33]} Kg2 {[%emt 0:00:59]} 60. Rc6 {[%emt 0:01:32]} Bf2 {[%emt 0:00:42]} 61. Rxg6+ {[%emt 0:00:30]} Bg3 {[%emt 0:00:00]} 62. Rxg3+ {[%emt 0:00:00]} Kxg3 {[%emt 0:00:00]} 63. f5 {[%emt 0:00:00]} h4 {[%emt 0:00:00]} 64. f6 {[%emt 0:00:19]} h3 {[%emt 0:00:00]} 65. f7 {[%emt 0:00:30]} h2 {[%emt 0:00:24]} 66. f8=Q {[%emt 0:00:30]} h1=Q {[%emt 0:00:30]} 67. Qf4+ {[%emt 0:00:02]} 1-0

[Event "Turkey IS Bank Super League 2017"]
[Site "Darica-Kocaeli"]
[Date "2017.07.27"]
[Round "2.48"]
[White "Gundogan, Sinem Cagla"]
[Black "Kargaci, Humeyra"]
[Result "1-0"]
[ECO "C54"]
[WhiteElo "2000"]
[BlackElo "1737"]
[Annotator "NA"]
[PlyCount "117"]
[EventType "team-tourn"]
[EventCountry "TUR"]
[SourceTitle "playchess.com"]
[Source "ChessBase"]
[SourceQuality "1"]
[TimeControl "40/5400+30:1800+30"]

1. e4 {[%emt 0:00:30]} e5 {[%emt 0:01:00]} 2. Nf3 {[%emt 0:00:30]} Nc6 {[%emt 0:00:30]} 3. Bc4 {[%emt 0:00:30]} Bc5 {[%emt 0:00:30]} 4. c3 {[%emt 0:00:30]} Nf6 {[%emt 0:00:30]} 5. d3 {[%emt 0:00:30]} a6 {[%emt 0:00:00]} 6. Bb3 {[%emt 0:00:30]} d6 {[%emt 0:00:00]} 7. Nbd2 {[%emt 0:00:30]} Ba7 {[%emt 0:00:30]} 8. h3 {[%emt 0:02:30] LiveBook: 458 Games} h6 {[%emt 0:00:30]} 9. Nf1 {[%emt 0:00:30]} Be6 {[%emt 0:00:30]} 10. Bc2 {[%emt 0:00:30]} d5 {[%emt 0:02:30]} 11. Qe2 {[%emt 0:02:30]} Qd7 $11 {[%emt 0:13:30] [%clk 1:12]} 12. Ng3 {[%emt 0:03:30]} dxe4 {[%emt 0:04:30]} 13. dxe4 {[%emt 0:01:30]} O-O {[%emt 0:03:30]} 14. Nh4 {[%emt 0:11:30]} Ne7 {[%emt 0:02:30]} 15. Qf3 {[%emt 0:03:30]} Kh7 {[%emt 0:15:30]} 16. O-O {[%emt 0:10:30]} Rad8 {[%emt 0:07:30]} 17. Nhf5 {[%emt 0:01:30]} Nxf5 {[%emt 0:00:30]} 18. Nxf5 {[%emt 0:00:30]} Bxf5 {[%emt 0:00:30]} 19. exf5 {[%emt 0:01:30]} Qd5 {[%emt 0:01:30]} 20. Qe2 {[%emt 0:15:30]} e4 {[%emt 0:03:30]} 21. Bf4 {[%emt 0:03:30]} Qxf5 {[%emt 0:07:30]} 22. Bxc7 {[%emt 0:00:30]} Rd7 {[%emt 0:00:30]} 23. g4 {[%emt 0:16:30]} Qg5 {[%emt 0:11:30]} 24. Bg3 {[%emt 0:00:30]} Re8 {[%emt 0:00:30]} 25. Rad1 {[%emt 0:00:30]} Rde7 {[%emt 0:00:30]} 26. Kh2 {[%emt 0:00:30]} Kg8 {[%emt 0:00:30]} 27. Rfe1 {[%emt 0:00:30]} Qb5 {[%emt 0:00:30]} 28. Qxb5 {[%emt 0:00:30]} axb5 {[%emt 0:00:30]} 29. a4 {[%emt 0:07:50]} bxa4 {[%emt 0:08:20]} 30. Bxa4 {[%emt 0:00:30]} Ra8 {[%emt 0:00:53]} 31. Bb3 {[%emt 0:01:35]} Bb8 {[%emt 0:00:30]} 32. Rd8+ {[%emt 0:00:30]} Re8 {[%emt 0:00:30]} 33. Rxe8+ {[%emt 0:00:30]} Nxe8 {[%emt 0:00:30]} 34. Rxe4 {[%emt 0:00:30]} Bxg3+ {[%emt 0:00:30]} 35. Kxg3 {[%emt 0:00:30]} Kf8 {[%emt 0:00:30]} 36. Rb4 {[%emt 0:00:30]} Nd6 {[%emt 0:00:30]} 37. Bd5 {[%emt 0:00:30]} Rb8 {[%emt 0:00:30]} 38. c4 {[%emt 0:01:23]} Rc8 {[%emt 0:02:00]} 39. b3 {[%emt 0:00:00]} Ke7 {[%emt 0:00:00]} 40. Bxb7 {[%emt 0:00:00]} Rb8 {[%emt 0:02:17]} 41. c5 {[%emt 0:07:12]} Nxb7 {[%emt 0:00:30]} 42. c6 {[%emt 0:01:30]} Rc8 {[%emt 0:00:30]} 43. Rxb7+ {[%emt 0:00:30]} Ke6 {[%emt 0:00:30]} 44. Rb6 {[%emt 0:01:30]} Kd6 {[%emt 0:00:30]} 45. b4 {[%emt 0:07:30]} Kc7 {[%emt 0:00:30]} 46. Rb7+ {[%emt 0:01:30]} Kxc6 {[%emt 0:00:30]} 47. Rxf7 {[%emt 0:00:30]} Rg8 {[%emt 0:00:30]} 48. Kf4 {[%emt 0:00:30]} Kb5 {[%emt 0:00:30]} 49. Kf5 {[%emt 0:00:30]} g6+ {[%emt 0:00:30]} 50. Kf6 {[%emt 0:00:30]} h5 {[%emt 0:00:30]} 51. g5 {[%emt 0:02:30]} Kxb4 {[%emt 0:00:30]} 52. Rg7 {[%emt 0:00:30]} Rf8+ {[%emt 0:00:30]} 53. Kxg6 {[%emt 0:00:30]} h4 {[%emt 0:00:00]} 54. Rf7 {[%emt 0:00:30]} Ra8 {[%emt 0:01:00]} 55. Kh5 {[%emt 0:00:30]} Rh8+ {[%emt 0:00:30]} 56. Kg4 {[%emt 0:01:30]} Kc5 {[%emt 0:00:00]} 57. f4 {[%emt 0:00:30]} Kd6 {[%emt 0:00:00]} 58. f5 {[%emt 0:00:30]} Ke5 {[%emt 0:00:30]} 59. g6 {[%emt 0:00:30]} 1-0

[Event "Turkey IS Bank Super League 2017"]
[Site "Darica-Kocaeli"]
[Date "2017.07.29"]
[Round "4"]
[White "Karavade, Eesha"]
[Black "Yildiz, Betul Cemre"]
[Result "1/2-1/2"]
[ECO "C54"]
[WhiteElo "2397"]
[BlackElo "2326"]
[Annotator "NA"]
[PlyCount "83"]
[EventType "team-tourn"]
[EventCountry "TUR"]
[SourceTitle "playchess.com"]
[Source "ChessBase"]
[SourceQuality "1"]
[TimeControl "40/5400+30:1800+30"]

1. e4 {[%emt 0:01:30]} e5 {[%emt 0:01:00]} 2. Nf3 {[%emt 0:00:30]} Nc6 {[%emt 0:00:30]} 3. Bc4 {[%emt 0:00:00]} Bc5 {[%emt 0:00:00]} 4. c3 {[%emt 0:00:00]} Nf6 {[%emt 0:01:00]} 5. d3 {[%emt 0:00:00]} d6 {[%emt 0:00:30]} 6. O-O {[%emt 0:02:00]} h6 {[%emt 0:01:30]} 7. Nbd2 {[%emt 0:00:30]} O-O {[%emt 0:02:30]} 8. Re1 {[%emt 0:07:30]} a6 {[%emt 0:05:30]} 9. Bb3 {[%emt 0:00:30]} Ba7 {[%emt 0:04:30]} 10. h3 {[%emt 0:08:30]} Ne7 {[%emt 0:05:30] LiveBook: 57 Games} 11. Nf1 {[%emt 0:03:30]} Ng6 {[%emt 0:01:30]} 12. Ng3 {[%emt 0:00:30]} c6 $14 {[%emt 0:11:30]} 13. d4 {[%emt 0:05:30]} Qc7 {[%emt 0:00:30]} 14. Be3 {[%emt 0:08:30]} Re8 {[%emt 0:04:30]} 15. Qd2 {[%emt 0:07:30]} Kh7 {[%emt 0:12:30]} 16. Rad1 {[%emt 0:08:30]} Be6 {[%emt 0:04:30]} 17. Qc2 {[%emt 0:08:30]} Bxb3 {[%emt 0:06:30]} 18. axb3 {[%emt 0:00:30]} exd4 {[%emt 0:01:30]} 19. Bxd4 {[%emt 0:02:30]} Bxd4 {[%emt 0:01:30]} 20. Nxd4 {[%emt 0:00:00]} d5 {[%emt 0:01:30]} 21. Ndf5 {[%emt 0:11:00]} dxe4 {[%emt 0:03:30]} 22. Nxe4 {[%emt 0:00:30]} Nxe4 {[%emt 0:01:30]} 23. Rxe4 {[%emt 0:00:30]} Rad8 {[%emt 0:05:30]} 24. Rde1 {[%emt 0:03:42]} Rxe4 {[%emt 0:02:30]} 25. Rxe4 {[%emt 0:00:18]} Rd5 {[%emt 0:03:00]} 26. Ne3 {[%emt 0:01:03]} Re5 {[%emt 0:00:49]} 27. b4 {[%emt 0:00:33]} a5 {[%emt 0:02:13]} 28. Rxe5 {[%emt 0:01:16]} Qxe5 {[%emt 0:00:02]} 29. bxa5 {[%emt 0:00:28]} Qxa5 {[%emt 0:00:04]} 30. g3 {[%emt 0:01:07]} Kg8 {[%emt 0:02:15]} 31. Kg2 {[%emt 0:00:48]} Qg5 {[%emt 0:06:33]} 32. Qe4 {[%emt 0:09:01]} Qe5 {[%emt 0:00:03]} 33. Qxe5 {[%emt 0:00:53]} Nxe5 {[%emt 0:00:30]} 34. f4 {[%emt 0:00:22]} Nd7 {[%emt 0:03:53]} 35. Kf3 {[%emt 0:01:17]} Kf8 {[%emt 0:00:05]} 36. g4 {[%emt 0:02:21]} g6 {[%emt 0:01:47]} 37. h4 {[%emt 0:02:13]} Ke7 {[%emt 0:01:32]} 38. Ke4 {[%emt 0:00:03]} Nc5+ {[%emt 0:00:53]} 39. Kd4 {[%emt 0:00:35]} Ne6+ {[%emt 0:00:30]} 40. Ke4 {[%emt 0:00:00]} Nc5+ {[%emt 0:30:12]} 41. Kd4 {[%emt 0:01:00]} Ne6+ {[%emt 0:00:00]} 42. Ke4 {[%emt 0:00:00]} 1/2-1/2

[Event "Turkey IS Bank Super League 2017"]
[Site "Darica-Kocaeli"]
[Date "2017.07.29"]
[Round "4"]
[White "Ozen, Deniz"]
[Black "Yazici, Ugur Doga"]
[Result "1-0"]
[ECO "C65"]
[WhiteElo "2351"]
[BlackElo "2144"]
[Annotator "NA"]
[PlyCount "41"]
[EventType "team-tourn"]
[EventCountry "TUR"]
[SourceTitle "playchess.com"]
[Source "ChessBase"]
[SourceQuality "1"]
[TimeControl "40/5400+30:1800+30"]

1. e4 {[%emt 0:01:30]} e5 {[%emt 0:01:00]} 2. Nf3 {[%emt 0:00:30]} Nc6 {[%emt 0:00:30]} 3. Bb5 {[%emt 0:00:00]} Nf6 {[%emt 0:00:30]} 4. d3 {[%emt 0:00:00]} Bc5 {[%emt 0:00:00] LiveBook: 2404 Games} 5. Be3 {[%emt 0:00:00]} Bxe3 {[%emt 0:02:00]} 6. fxe3 {[%emt 0:00:00]} d6 {[%emt 0:00:30]} 7. c3 {[%emt 0:02:30]} O-O {[%emt 0:00:30]} 8. O-O {[%emt 0:00:00]} Bd7 {[%emt 0:01:30]} 9. Nbd2 {[%emt 0:04:00]} Re8 {[%emt 0:01:30]} 10. Qe2 {[%emt 0:07:30]} a6 {[%emt 0:03:30]} 11. Ba4 {[%emt 0:00:00]} d5 {[%emt 0:02:30]} 12. exd5 {[%emt 0:04:00]} Nxd5 {[%emt 0:00:30]} 13. Ne4 {[%emt 0:00:30]} Na5 $2 {[%emt 0:12:30]} (13... h6 $16) 14. Bxd7 {[%emt 0:07:30]} Qxd7 $18 {[%emt 0:00:30]} 15. c4 {[%emt 0:06:30]} Nb4 {[%emt 0:09:30]} 16. Nfg5 {[%emt 0:02:30]} Qxd3 {[%emt 0:24:30]} 17. Qh5 {[%emt 0:01:30]} h6 {[%emt 0:02:30]} 18. Rxf7 {[%emt 0:02:30]} Rf8 {[%emt 0:06:30]} 19. Raf1 {[%emt 0:13:30]} hxg5 {[%emt 0:11:41]} 20. Nxg5 {[%emt 0:00:30]} Qxf1+ {[%emt 0:03:04]} 21. Kxf1 {[%emt 0:01:30]} 1-0